bitfinex-derivatives/quotes_ETHF0:USTF0_20250730
["timestamp","ask_amount","ask_price","bid_price","bid_amount"]
[1753907880387,1.3086,3771.0,3770.6,1.32646]
[1753907880689,6.1035,3770.7,3770.6,6.69378]
[1753907881690,6.1035,3770.7,3770.6,0.53058]
[1753907881888,6.1035,3770.7,3770.6,19.07258]
[1753907883085,2.4101,3770.7,3770.5,0.53059]
[1753907883287,6.1035,3770.6,3770.5,0.53059]
[1753907884391,6.1035,3770.4,3770.3,18.541]
[1753907884592,2.4101,3770.4,3770.3,18.541]
[1753907884987,2.4101,3770.4,3770.3,19.1349]
[1753907885292,6.1035,3770.4,3770.3,19.1349]
[1753907887298,2.4101,3769.7,3769.4,3.2078]
[1753907887599,6.1035,3769.5,3769.4,22.87245]
[1753907888795,6.1035,3769.5,3769.4,4.33245]
[1753907889000,6.1035,3769.5,3769.4,22.3437]
[1753907889898,2.4101,3769.1,3769.0,3.7386]
[1753907890198,6.1035,3769.1,3769.0,22.8745]
[1753907890602,6.1035,3769.1,3768.8,0.39799939]
[1753907890892,6.1035,3768.9,3768.8,0.39799939]
[1753907893298,11.1035,3768.9,3768.8,0.39799939]
[1753907893704,6.1035,3768.2,3768.1,1.12483]
[1753907893903,6.1035,3768.2,3768.1,6.69413]
[1753907894610,6.1035,3768.1,3767.9,0.53095]
[1753907894799,3.6934,3768.0,3767.9,0.53095]
[1753907895006,6.1035,3768.0,3767.7,1.45928]
[1753907895202,6.1035,3767.9,3767.8,0.53096]
[1753907895507,2.4101,3767.9,3767.6,3.2078]
[1753907895704,0.8698,3767.6,3767.3,0.9283]
[1753907895901,6.1035,3767.4,3767.3,6.69424]
[1753907896102,1.3086,3767.3,3767.1,0.53106]
[1753907896310,6.1035,3767.2,3767.1,5.19886]
[1753907897209,6.1035,3767.2,3767.1,6.69426]
[1753907897410,6.1035,3767.2,3767.1,6.1632]
[1753907897707,6.1035,3767.2,3767.1,0.5939]
[1753907897903,6.1035,3767.2,3767.1,1.5222]
[1753907898513,6.1035,3767.2,3767.1,2.4681]
[1753907899112,6.1035,3767.2,3767.1,1.5222]
[1753907899304,6.1035,3767.2,3767.1,2.8823]
[1753907899810,6.1035,3767.2,3767.1,1.5222]
[1753907900014,2.4101,3766.9,3766.8,1.5222]
[1753907900304,6.1035,3766.8,3766.7,1.12502]
[1753907900509,6.1035,3766.8,3766.7,2.05332]
[1753907901102,6.1035,3766.8,3766.7,5.19892]
[1753907901409,5.2337,3766.8,3766.7,6.69432]
[1753907902701,5.2337,3767.3,3767.2,2.05326]
[1753907902905,6.1035,3767.3,3767.2,6.1632]
[1753907903105,6.1035,3767.3,3767.2,1.5222]
[1753907903605,2.4101,3768.7,3768.6,3.3077]
[1753907903804,2.7769,3768.7,3768.6,9.90186]
[1753907904208,4.2919,3768.7,3768.6,9.90186]
[1753907904402,5.2337,3768.7,3768.6,9.90186]
[1753907904710,6.1035,3768.7,3768.6,7.04636]
[1753907905303,6.1035,3768.7,3768.6,8.40646]
[1753907905503,6.1035,3768.7,3768.6,9.90186]
[1753907906407,6.1035,3768.7,3768.6,8.40646]
[1753907906711,6.1035,3768.6,3768.5,1.5222]
[1753907907107,6.1035,3768.6,3768.5,2.8823]
[1753907908309,0.8698,3768.5,3768.4,0.53088]
[1753907908511,6.1035,3768.5,3768.4,1.45918]
[1753907908809,2.4101,3768.5,3768.3,0.8896]
[1753907909009,6.2133,3768.4,3768.3,1.5032]
[1753907909415,6.2133,3768.4,3768.3,4.7202]
[1753907909708,6.2133,3768.4,3768.3,6.1908]
[1753907910014,5.3077,3768.4,3768.3,6.1908]
[1753907911307,3.4,3768.4,3768.3,6.1908]
[1753907911509,2.2251,3768.7,3768.6,0.9671]
[1753907911510,4.7332,3768.7,3768.6,0.9671]
[1753907911713,6.2133,3768.7,3768.6,6.1908]
[1753907911914,6.2133,3768.7,3768.6,6.72166]
[1753907912422,0.5882,3769.3,3769.2,0.6136]
[1753907912616,2.457,3769.3,3769.2,1.5032]
[1753907912815,3.27469554,3769.3,3769.2,2.03397]
[1753907913118,7.03099554,3769.3,3769.2,1.5032]
[1753907913617,7.03099554,3769.3,3769.2,2.8643]
[1753907914022,7.03099554,3769.3,3769.2,4.7202]
[1753907914214,6.12539554,3769.3,3769.2,6.1908]
[1753907914720,1.70959554,3769.3,3769.2,9.3986]
[1753907914916,0.81769554,3769.3,3769.2,9.3986]
[1753907915423,0.95264986,3770.1,3770.0,3.00016]
[1753907915619,6.26034986,3770.1,3770.0,1.5032]
[1753907915825,6.2133,3770.0,3769.9,0.53067]
[1753907916023,6.2133,3770.0,3769.9,2.03387]
[1753907916824,6.2133,3770.0,3769.9,5.93917]
[1753907917025,6.25859223,3770.0,3769.9,5.93917]
[1753907917230,5.3077,3770.0,3769.9,5.93917]
[1753907917819,1.3313883,3770.7,3769.9,2.939]
[1753907918024,0.8919,3770.4,3770.3,5.93911]
[1753907919420,5.3077,3770.4,3770.3,5.4085]
[1753907919619,5.3077,3770.4,3770.3,3.9379]
[1753907919824,5.46380474,3770.4,3770.3,3.9379]
[1753907920320,2.8507,3770.3,3770.1,1.42024]
[1753907920519,3.9882,3770.2,3770.1,1.5032]
[1753907920723,5.46384647,3770.2,3770.1,1.5032]
[1753907920928,5.46384647,3770.2,3770.1,3.0491]
[1753907921127,5.46384647,3770.2,3769.1,0.26183608]
[1753907921128,5.3077,3769.7,3769.6,8.6163]
[1753907921328,5.3077,3769.7,3769.6,9.14701]
[1753907921529,0.53061,3770.4,3769.7,1.4706]
[1753907921732,6.36945139,3770.3,3770.2,1.5032]
[1753907922732,2.457,3769.9,3769.8,3.00019]
[1753907922932,5.3077,3769.9,3769.8,4.5189]
[1753907923526,6.2133,3769.9,3769.8,2.4703]
[1753907925028,3.4,3769.9,3769.8,5.4085]
[1753907925333,5.3077,3770.2,3770.1,5.93915]
[1753907926032,5.46388039,3770.2,3770.1,5.93915]
[1753907926523,1.8688,3770.2,3770.1,5.93915]
[1753907926726,1.04807028,3770.2,3770.1,5.93915]
[1753907927331,0.8919,3770.2,3770.1,5.93915]
[1753907927732,1.04806527,3770.2,3770.1,5.93915]
[1753907928333,1.04806114,3770.2,3770.1,5.93915]
[1753907928528,5.3077,3770.2,3770.1,5.4085]
[1753907928929,5.46387548,3770.2,3770.1,5.4085]
[1753907929338,5.46387368,3770.2,3770.1,5.4085]
[1753907930031,5.3077,3770.2,3770.1,5.4085]
[1753907930633,2.457,3770.2,3770.1,1.5032]
[1753907931135,4.6821,3769.9,3769.8,2.4703]
[1753907931335,6.2133,3769.9,3769.8,23.9475]
[1753907931731,6.2133,3769.9,3769.8,0.6136]
[1753907931932,6.2133,3769.9,3769.8,1.5032]
[1753907932132,6.2133,3769.9,3769.8,3.9379]
[1753907932333,5.3077,3769.9,3769.8,5.4085]
[1753907933130,5.3077,3769.9,3769.7,18.539]
[1753907933330,0.9769,3769.3,3769.2,0.5788]
[1753907933539,6.2133,3769.3,3769.2,20.0412]
[1753907933834,6.2133,3769.3,3769.2,23.9465]
[1753907934039,5.3077,3769.5,3769.4,5.93924]
[1753907934429,6.2133,3769.5,3769.4,5.4085]
[1753907934634,6.2133,3769.5,3769.4,2.4703]
[1753907934840,6.2133,3769.5,3769.4,3.00105]
[1753907935039,6.2133,3769.5,3769.4,2.4703]
[1753907935240,6.2133,3769.5,3769.2,1.5032]
[1753907935241,1.5651,3769.3,3769.2,1.5032]
[1753907935542,6.2133,3769.3,3769.2,20.0412]
[1753907936242,6.2133,3769.3,3769.2,1.5032]
[1753907937141,6.2133,3769.3,3769.1,21.7458]
[1753907937142,6.2133,3769.2,3769.1,22.27658]
[1753907937638,6.2133,3769.2,3769.1,22.89018]
[1753907937838,6.2133,3769.2,3769.1,23.77978]
[1753907938740,5.3077,3769.2,3769.1,27.63638]
[1753907940037,3.2078,3769.7,3769.1,27.63638]
[1753907940038,3.2078,3769.7,3769.1,24.42858]
[1753907940237,3.5991,3769.9,3769.8,1.71139]
[1753907940436,6.0796,3769.9,3769.8,0.6022]
[1753907940741,6.0796,3769.8,3769.7,1.1329]
[1753907940940,6.0796,3769.8,3769.7,1.9756]
[1753907941140,2.4805,3768.9,3768.8,5.3512]
[1753907941439,6.0796,3768.9,3768.8,0.6022]
[1753907941840,6.0796,3768.9,3768.8,2.4076]
[1753907942040,6.0796,3768.9,3768.8,2.9861]
[1753907942237,6.0796,3768.9,3768.8,3.8395]
[1753907942433,6.0796,3768.9,3768.8,5.2661]
[1753907942634,2.4805,3769.4,3769.2,0.53077]
[1753907942841,6.0796,3769.3,3769.2,3.51687]
[1753907943146,3.321,3769.7,3769.6,1.97562]
[1753907943439,1.4849,3769.4,3769.3,1.97566]
[1753907943641,5.2391,3769.4,3769.3,4.37026]
[1753907943843,6.5288,3770.1,3769.5,0.8427]
[1753907944037,6.5288,3770.1,3770.0,1.4449]
[1753907944344,9.2874,3770.1,3770.0,1.4449]
[1753907945046,6.0796,3770.1,3770.0,1.4449]
[1753907945743,6.0796,3770.1,3770.0,2.4076]
[1753907945943,5.2391,3770.1,3770.0,3.261]
[1753907946144,5.2391,3770.1,3770.0,5.2661]
[1753907946641,3.276,3770.1,3770.0,5.2661]
[1753907947045,4.0920372,3770.1,3770.0,5.2661]
[1753907947339,4.3626,3770.4,3770.3,1.5649]
[1753907947535,6.0555788,3770.4,3770.3,5.79672]
[1753907948538,6.0555788,3770.4,3770.3,2.4076]
[1753907948539,6.8960788,3770.4,3770.3,2.4076]
[1753907949748,6.8960788,3770.4,3770.3,3.8395]
[1753907949942,6.8960788,3770.4,3770.3,5.2661]
[1753907950346,6.0796,3770.4,3770.3,5.2661]
[1753907951449,6.0796,3770.4,3770.3,3.8395]
[1753907952441,6.0796,3770.4,3770.3,5.2661]
[1753907953151,6.0796,3770.4,3770.3,1.4449]
[1753907953446,2.2312,3770.4,3770.3,1.4449]
[1753907953754,6.0796,3770.5,3770.4,0.53061]
[1753907954149,2.4805,3770.4,3770.3,1.37332]
[1753907954348,6.0796,3770.4,3770.3,1.97552]
[1753907954552,6.0796,3770.4,3770.3,3.51672]
[1753907954850,6.0796,3770.4,3770.3,4.94332]
[1753907956448,6.0796,3770.4,3770.3,5.79672]
[1753907960053,6.0796,3770.4,3770.3,4.37012]
[1753907962053,6.0796,3770.4,3770.3,3.51672]
[1753907962749,6.0796,3770.4,3770.3,1.4449]
[1753907962955,6.0796,3770.4,3770.3,0.6022]
[1753907963349,6.0796,3770.4,3770.3,1.4449]
[1753907964652,3.01112,3770.4,3770.2,0.53062]
[1753907964853,6.61026,3770.1,3770.0,0.53065]
[1753907965055,3.321,3769.7,3769.6,2.8768]
[1753907965253,3.321,3769.7,3769.6,0.53072]
[1753907965454,3.321,3769.7,3769.6,2.55412]
[1753907965755,6.0796,3769.7,3769.6,2.55412]
[1753907965956,6.0796,3769.7,3769.6,5.79682]
[1753907966449,5.2391,3769.7,3769.6,4.37022]
[1753907966651,6.0796,3769.7,3769.6,1.97562]
[1753907966951,6.0796,3769.7,3769.6,2.55412]
[1753907967156,6.0796,3769.7,3769.6,4.94342]
[1753907967456,6.0796,3769.7,3769.6,2.55412]
[1753907967657,6.0796,3769.7,3769.6,1.4449]
[1753907968846,6.0796,3769.7,3769.6,0.6022]
[1753907969054,2.4805,3769.7,3769.2,3.2078]
[1753907969251,3.9698,3769.5,3769.4,1.12975]
[1753907969455,6.0916,3769.5,3769.4,2.13055]
[1753907969656,6.0916,3769.5,3769.4,2.70905]
[1753907969857,5.2391,3769.5,3769.4,5.97965]
[1753907972662,6.0916,3769.5,3769.4,5.97965]
[1753907974059,6.0916,3770.1,3770.0,2.01985]
[1753907974256,6.0916,3770.1,3770.0,4.5286]
[1753907974457,6.0916,3770.1,3770.0,5.4489]
[1753907974956,2.4612,3770.1,3769.9,0.53067]
[1753907975162,3.3137,3770.0,3769.9,2.01987]
[1753907975357,6.0916,3770.0,3769.9,1.4892]
[1753907975560,6.0916,3770.0,3769.9,0.599]
[1753907976464,0.53065,3770.1,3769.6,2.0386]
[1753907976465,2.4612,3769.8,3769.6,0.53071]
[1753907976665,6.0916,3769.7,3769.6,2.01991]
[1753907977062,6.0916,3769.7,3769.6,2.59841]
[1753907977366,6.0916,3769.7,3769.6,2.01991]
[1753907977864,6.0916,3769.7,3769.6,1.4892]
[1753907978665,6.0916,3769.7,3769.6,2.0677]
[1753907978865,6.0916,3769.7,3769.6,1.4892]
[1753907979868,6.0916,3769.7,3769.6,3.0685]
[1753907980060,5.2391,3769.7,3769.6,5.4489]
[1753907981265,0.884,3769.7,3769.6,8.6567]
[1753907981564,3.6619,3770.0,3769.9,5.97948]
[1753907981961,5.2391,3770.0,3769.9,3.0684]
[1753907982167,6.0916,3770.0,3769.9,2.0676]
[1753907982361,6.0916,3770.0,3769.9,3.0684]
[1753907982560,3.9698,3770.0,3769.9,5.4488]
[1753907983061,5.2391,3770.0,3769.9,5.4488]
[1753907983461,4.8223,3770.0,3769.6,3.2078]
[1753907983762,6.0916,3769.9,3769.8,0.53068]
[1753907984168,6.0916,3769.9,3769.8,1.4892]
[1753907984363,6.0916,3769.7,3769.6,1.42091]
[1753907984558,1.2693,3769.6,3769.5,0.53073]
[1753907984760,6.0916,3769.6,3769.5,1.12973]
[1753907984964,6.0916,3769.6,3769.5,2.01993]
[1753907985164,6.0916,3769.6,3769.5,2.59833]
[1753907985755,2.3611,3768.9,3768.8,4.098]
[1753907985958,6.62243,3768.9,3768.6,3.45955]
[1753907986163,2.4612,3768.8,3768.7,1.4892]
[1753907986766,2.4612,3768.5,3768.4,1.4892]
[1753907986966,5.2391,3768.5,3768.4,5.97968]
[1753907988375,6.0916,3768.5,3768.4,5.97968]
[1753907988665,2.89201,3768.4,3768.0,4.62894]
[1753907988861,6.0916,3768.1,3768.0,6.80714]
[1753907989082,5.2391,3768.1,3768.0,9.18754]
[1753907989870,1.2693,3768.9,3768.1,1.32734]
[1753907990075,4.583,3768.9,3768.8,4.5285]
[1753907990573,6.0916,3768.9,3768.8,4.5285]
[1753907991967,6.0916,3768.9,3768.8,5.4488]
[1753907994275,6.0916,3768.9,3768.8,3.0684]
[1753907996878,6.0916,3768.9,3768.8,5.4488]
[1753907997477,5.2391,3768.9,3768.8,5.4488]
[1753907997680,5.2391,3769.0,3768.9,5.97962]
[1753908000479,6.1014,3769.0,3768.9,5.97962]
[1753908000880,5.2391,3769.0,3768.9,5.97962]
[1753908002481,6.1014,3769.0,3768.9,5.97962]
[1753908002880,6.1014,3769.0,3768.9,3.0684]
[1753908003184,2.4587,3768.7,3768.6,1.96345]
[1753908003383,5.1682,3768.7,3768.6,5.77155]
[1753908005487,3.2078,3770.1,3770.0,0.53067]
[1753908005787,0.9513883,3771.1,3770.6,5.77128]
[1753908006084,0.8699,3771.2,3771.1,5.77121]
[1753908006491,0.9513883,3771.5,3771.3,4.36138]
[1753908006692,0.9513883,3771.5,3771.4,5.2407]
[1753908007090,0.9513883,3771.6,3771.5,5.77115]
[1753908007387,0.9513883,3771.7,3771.6,5.2407]
[1753908007985,1.42572367,3772.1,3772.0,0.53038]
[1753908008182,1.42572367,3772.1,3772.0,5.77108]
[1753908008395,1.42572367,3772.2,3772.1,5.2407]
[1753908008788,2.3056,3772.3,3772.2,1.96196]
[1753908008989,1.8405,3772.3,3772.2,5.77106]
[1753908009194,7.1022,3772.6,3772.5,5.19271]
[1753908009393,5.1682,3772.6,3772.5,5.77101]
[1753908009597,1.4357,3773.0,3772.7,0.53028]
[1753908009785,3.1143,3772.9,3772.8,5.2407]
[1753908010093,7.1022,3773.2,3773.1,5.2407]
[1753908010290,3.8944,3773.2,3773.1,5.2407]
[1753908010484,5.1682,3773.2,3773.1,5.2407]
[1753908011595,6.0305,3773.2,3773.1,3.8015]
[1753908012090,6.0305,3773.2,3773.1,5.2407]
[1753908013892,6.0305,3773.2,3773.1,5.77093]
[1753908014192,6.0305,3773.2,3773.1,5.2407]
[1753908014397,6.0305,3773.2,3773.1,5.77093]
[1753908015098,6.0305,3773.2,3773.1,5.2407]
[1753908022502,5.1682,3773.2,3773.1,5.2407]
[1753908022702,1.4357,3774.6,3773.6,5.77086]
[1753908022909,5.1682,3774.5,3774.4,2.97]
[1753908023406,5.1682,3774.5,3774.4,5.2407]
[1753908023608,2.4587,3774.2,3774.1,2.3927]
[1753908023909,6.0305,3773.9,3773.8,1.10182]
[1753908024208,5.1682,3773.9,3773.8,4.90992]
[1753908024404,5.1682,3773.9,3773.8,5.77082]
[1753908025912,3.7325,3773.9,3773.8,5.77082]
[1753908026108,5.1682,3773.9,3773.8,5.77082]
[1753908026410,1.5888,3773.2,3773.1,6.67963]
[1753908026611,3.2762,3773.2,3773.1,8.11783]
[1753908026800,0.8699,3773.2,3773.1,8.97873]
[1753908027207,1.8405,3773.2,3773.1,8.97873]
[1753908027506,5.1682,3773.2,3773.1,8.97873]
[1753908028609,3.8944,3773.2,3773.1,8.97873]
[1753908028809,3.2762,3773.2,3773.1,8.97873]
[1753908030410,5.1666,3773.2,3773.1,8.97873]
[1753908031211,4.5504,3773.2,3773.1,8.97873]
[1753908031404,5.1666,3773.2,3773.1,8.97873]
[1753908031811,5.1666,3773.2,3773.1,5.2407]
[1753908033505,2.7794,3773.1,3773.0,0.6117]
[1753908033712,1.5272,3772.1,3772.0,2.03049]
[1753908034005,6.1727,3772.1,3772.0,3.04159]
[1753908034313,6.1727,3772.1,3772.0,5.98269]
[1753908034512,2.5371,3772.6,3772.5,3.05421]
[1753908034713,5.3165,3772.9,3772.8,5.98257]
[1753908035406,6.1185574,3772.9,3772.8,5.98257]
[1753908036407,0.8020574,3772.9,3772.8,5.98257]
[1753908036612,6.9747574,3772.9,3772.8,1.5001]
[1753908036910,6.1727,3772.4,3772.2,0.53034]
[1753908037210,6.97695316,3772.3,3772.2,2.03044]
[1753908037610,6.97695316,3772.3,3772.2,1.5001]
[1753908039515,6.1727,3772.2,3772.1,2.03045]
[1753908039715,6.97695316,3772.2,3772.1,2.03045]
[1753908040015,6.97695316,3772.2,3772.1,5.98265]
[1753908040509,0.80425316,3772.2,3772.1,5.98265]
[1753908040705,5.3165,3772.5,3772.4,5.98262]
[1753908041814,6.26728084,3772.5,3772.4,5.98262]
[1753908042208,7.12348084,3772.5,3772.4,2.03042]
[1753908042502,7.12348084,3772.5,3772.4,1.14202]
[1753908042703,7.12348084,3772.5,3772.4,0.53032]
[1753908042903,3.48788084,3772.5,3772.3,0.53033]
[1753908043114,6.1727,3772.4,3772.3,0.53033]
[1753908044013,6.1727,3772.4,3772.3,1.14203]
[1753908044214,6.1727,3772.4,3772.3,2.03043]
[1753908044804,2.7794,3773.5,3773.4,0.53018]
[1753908045009,0.911,3773.5,3773.4,5.24786129]
[1753908045811,2.4162,3773.5,3773.4,5.77804129]
[1753908046119,0.911,3773.9,3773.8,5.98243]
[1753908046615,5.3165,3773.9,3773.8,5.98243]
[1753908046816,1.5052,3774.3,3774.1,0.53006]
[1753908047011,6.1727,3774.2,3774.1,3.61796]
[1753908047208,3.8113,3774.5,3774.4,2.0768]
[1753908047508,1.2742,3774.9,3774.8,3.1006]
[1753908047712,5.3165,3774.9,3774.8,3.63055]
[1753908048115,2.5371,3774.9,3774.7,0.52997]
[1753908048306,6.1727,3774.8,3774.7,0.52997]
[1753908049222,6.1727,3774.8,3774.6,0.52998]
[1753908049416,6.1727,3774.7,3774.6,0.52998]
[1753908050013,6.1727,3774.7,3774.6,1.14168]
[1753908050419,6.1727,3774.7,3773.9,1.5001]
[1753908050420,2.5371,3774.0,3773.9,1.5001]
[1753908050719,6.1727,3774.0,3773.9,1.14178]
[1753908050918,6.1727,3774.0,3773.9,2.60898]
[1753908051311,1.2742,3774.3,3774.2,4.52114]
[1753908051510,6.1727,3774.6,3774.5,2.0301]
[1753908052719,6.92231758,3774.6,3774.5,2.0301]
[1753908052914,6.92231758,3774.6,3774.5,1.5001]
[1753908053119,6.92231758,3774.6,3774.5,0.6117]
[1753908053311,6.92231758,3774.6,3774.3,0.53002]
[1753908053515,2.5371,3774.4,3774.3,1.14172]
[1753908053713,6.1727,3774.4,3774.3,2.03012]
[1753908053911,5.3165,3774.4,3774.3,5.98442]
[1753908056214,2.8014,3774.4,3774.3,5.98442]
[1753908056413,5.3165,3774.4,3774.3,5.98442]
[1753908056815,0.911,3774.4,3774.3,5.98442]
[1753908057016,3.0324,3774.7,3774.6,0.52999]
[1753908057215,3.2078,3775.1,3775.0,0.6117]
[1753908057421,10.12975893,3775.1,3775.0,4.8756]
[1753908057622,10.12975893,3775.1,3775.0,0.6117]
[1753908058122,3.06704,3774.9,3774.8,0.6117]
[1753908058329,2.5371,3774.9,3774.8,0.6117]
[1753908058630,2.5371,3774.9,3774.8,1.5001]
[1753908058830,6.1049,3774.9,3774.8,1.5001]
[1753908059131,6.1049,3774.9,3774.8,5.3781]
[1753908059433,8.3958,3775.1,3775.0,5.3833]
[1753908060026,5.188,3775.1,3775.0,5.3833]
[1753908061127,6.0268,3775.1,3775.0,1.5105]
[1753908061328,6.0268,3775.1,3775.0,4.8076]
[1753908061524,6.0268,3775.1,3775.0,5.3833]
[1753908062031,1.4321,3776.0,3775.9,3.0316]
[1753908062226,1.4321,3776.0,3775.9,5.9131]
[1753908063129,1.2969,3776.1,3775.9,5.9131]
[1753908063430,1.2758,3776.7,3776.6,5.3833]
[1753908063627,3.2078,3777.5,3777.4,0.52959]
[1753908063825,9.2346,3777.5,3777.4,5.91289]
[1753908064026,6.9637,3777.5,3777.4,5.91289]
[1753908064332,8.3958,3777.5,3777.4,5.91289]
[1753908064519,3.2078,3777.5,3777.4,5.91289]
[1753908064725,9.2346,3777.5,3777.4,2.4743]
[1753908064927,9.2346,3777.5,3777.4,1.5105]
[1753908065328,0.8958,3777.5,3777.4,5.3833]
[1753908065629,3.2078,3778.3,3778.2,2.8815]
[1753908066020,2.729,3778.6,3778.5,0.52944]
[1753908066223,3.2078,3778.7,3778.6,1.4693]
[1753908066422,0.52934,3779.2,3778.6,3.41092]
[1753908066627,0.52934,3779.2,3778.6,1.94162]
[1753908066826,2.729,3778.9,3778.7,2.8815]
[1753908067028,1.4321,3778.8,3778.7,1.4122]
[1753908067234,1.2969,3779.2,3778.8,0.5294]
[1753908067434,3.5678,3779.2,3778.9,1.4122]
[1753908067731,3.5678,3779.2,3779.0,2.8815]
[1753908067732,2.729,3779.1,3779.0,2.8815]
[1753908069227,2.1357,3778.7,3778.6,3.2078]
[1753908069426,1.4321,3778.3,3778.2,2.3058]
[1753908069626,3.2078,3779.0,3778.9,2.8815]
[1753908069831,2.729,3779.4,3779.1,0.8936]
[1753908070135,1.4321,3779.4,3779.3,2.8815]
[1753908070327,1.4321,3779.4,3779.3,1.4693]
[1753908070528,1.4321,3779.4,3778.9,3.2078]
[1753908070529,0.52933,3779.3,3778.9,0.52937]
[1753908070728,2.729,3779.2,3779.1,2.8815]
[1753908070935,3.5678,3779.2,3779.1,2.8815]
[1753908072830,0.52935,3779.1,3778.9,1.4693]
[1753908073135,3.5678,3779.1,3779.0,2.8815]
[1753908073435,1.4321,3779.4,3779.2,3.41083]
[1753908073630,5.71731,3779.4,3779.3,4.4622]
[1753908073832,6.55611,3779.4,3779.3,4.4622]
[1753908074136,5.188,3779.4,3779.3,5.3833]
[1753908074334,5.568,3779.7,3779.6,5.3833]
[1753908074540,6.09727,3779.7,3779.6,5.3833]
[1753908074729,6.93607,3779.7,3779.6,5.3833]
[1753908074926,4.9747,3779.7,3779.6,3.9711]
[1753908075134,0.38,3779.7,3779.6,3.9711]
[1753908075440,0.38,3779.7,3779.6,5.3833]
[1753908077735,5.568,3779.7,3779.6,5.3833]
[1753908077940,2.459,3779.4,3779.3,1.5105]
[1753908078137,6.0268,3779.4,3779.3,3.05]
[1753908078440,3.2774,3779.4,3779.3,5.3833]
[1753908079629,0.52934,3779.3,3779.1,3.2078]
[1753908079834,5.188,3778.9,3778.6,3.2078]
[1753908080134,3.5678,3778.3,3778.2,3.2078]
[1753908080641,3.2078,3778.8,3778.4,0.8936]
[1753908080933,2.729,3779.2,3779.1,2.51724]
[1753908081138,1.4321,3779.2,3779.1,5.72504]
[1753908081340,2.729,3779.4,3779.2,1.9879]
[1753908081538,1.4321,3779.3,3779.2,3.41084]
[1753908081741,2.729,3779.3,3779.2,3.41084]
[1753908082732,4.09714,3779.3,3779.1,3.2078]
[1753908082941,1.4321,3779.0,3778.7,0.5294]
[1753908083139,2.1357,3778.4,3778.3,1.42306]
[1753908083334,3.5678,3778.4,3778.3,0.8936]
[1753908083539,3.5678,3778.3,3778.2,0.52947]
[1753908083734,3.5678,3778.2,3778.0,3.2078]
[1753908083938,0.52948,3778.3,3778.0,3.2078]
[1753908083939,3.5678,3778.1,3778.0,3.2078]
[1753908084343,3.5678,3778.1,3778.0,4.1014]
[1753908084645,2.729,3778.4,3778.1,2.3058]
[1753908084947,1.4321,3778.4,3778.3,3.41097]
[1753908085540,2.729,3778.4,3778.3,3.41097]
[1753908085841,3.5678,3778.7,3778.4,0.52945]
[1753908086238,0.8388,3778.6,3778.5,0.52943]
[1753908086440,3.5678,3778.6,3778.5,0.52943]
[1753908086642,3.5678,3778.6,3778.4,0.52944]
[1753908086843,3.5678,3778.5,3778.4,0.52944]
[1753908087635,1.4321,3778.4,3778.0,3.2078]
[1753908087841,3.2078,3778.9,3778.0,4.1014]
[1753908088037,2.729,3778.5,3778.0,3.2078]
[1753908088240,1.36826,3778.4,3778.1,0.52948]
[1753908088440,3.5678,3778.3,3778.0,3.7373]
[1753908088636,1.3052,3778.1,3778.0,3.2078]
[1753908088841,0.52946,3778.4,3777.7,1.89957]
[1753908089048,3.7082,3777.9,3777.8,0.52954]
[1753908089542,3.7082,3777.9,3777.7,0.52954]
[1753908089746,3.2078,3778.5,3777.9,0.52951]
[1753908089946,0.73007764,3778.4,3777.9,0.52951]
[1753908090140,1.25967713,3778.3,3778.0,0.5295]
[1753908090345,0.8968,3778.1,3778.0,0.5295]
[1753908090545,3.7082,3778.1,3778.0,0.5295]
[1753908090745,3.7082,3778.1,3777.9,0.52951]
[1753908090946,3.2078,3778.5,3777.9,0.52951]
[1753908091146,6.1719,3778.0,3777.9,0.52951]
[1753908092241,4.23773,3777.9,3777.8,1.4884]
[1753908092447,6.1719,3777.6,3777.5,3.2078]
[1753908092645,7.43385077,3777.6,3777.4,0.52959]
[1753908092848,7.43394994,3777.5,3777.3,0.5296]
[1753908093154,6.1719,3777.2,3777.1,3.73743]
[1753908093751,6.1719,3777.2,3777.1,5.22583]
[1753908094056,6.1719,3777.2,3777.1,3.73743]
[1753908094254,6.1719,3777.2,3777.1,3.2078]
[1753908095053,6.90561489,3777.2,3777.1,3.2078]
[1753908097351,6.90561489,3777.2,3777.1,3.8164]
[1753908097654,6.90561489,3777.2,3777.1,4.6962]
[1753908097849,6.90525211,3777.2,3777.1,4.6962]
[1753908099354,6.90525211,3777.2,3777.1,5.6951]
[1753908099549,6.90525211,3777.2,3777.1,6.2691]
[1753908099748,6.90525211,3777.2,3777.1,4.6962]
[1753908099953,6.91563109,3777.2,3777.1,3.2078]
[1753908100159,6.18227898,3777.2,3777.1,3.8164]
[1753908100454,1.5362,3776.7,3776.6,3.2078]
[1753908100658,6.7016,3776.7,3776.4,0.52973]
[1753908100863,6.1719,3776.5,3776.4,0.52973]
[1753908101155,6.1719,3776.4,3776.3,0.52974]
[1753908101350,6.1719,3776.4,3776.3,3.01704]
[1753908101554,6.1719,3776.4,3776.3,4.99144]
[1753908101752,6.1719,3776.4,3776.3,3.01704]
[1753908101953,6.1845002,3776.4,3776.3,3.01704]
[1753908102961,6.19258108,3776.4,3776.3,3.01704]
[1753908103951,4.8667,3776.3,3776.2,3.73755]
[1753908104154,1.5062,3776.2,3775.4,3.2078]
[1753908104358,3.9699,3775.6,3775.5,2.4873]
[1753908105277,3.9699,3775.6,3775.5,1.4884]
[1753908105475,4.00716116,3775.6,3775.5,1.4884]